Cogmind - Beta 15 @@@ ROGUE MODE // 2025.09.18 @ 10:28:26 Player: GermanMO Result: Destroyed by G-50 Soldier with Heavy Laser Performance ------------- Evolutions (2) 1000 Regions Visited (4) 800 Robots Destroyed (21) 105 Value Destroyed (649) 649 Prototype IDs (2) 40 Alien Tech Used (0) 0 Bonus (200) 200 TOTAL SCORE: 2794 Bonus ------- Entered Garrisons 200 Cogmind --------- Core Integrity 0/550 Matter 194/300 Energy 65/100 System Corruption 0% Temperature Cool (18) Movement Walking (120) Location -8/Garrison Parts ------- > --- POWER (2) -------- (None) > --- PROPULSION (5) --- Carbon-fiber Leg > --- UTILITY (2) ------ Improved Light Armor Plating Improved Light Armor Plating > --- WEAPON (2) ------- Gauss Rifle > --- INVENTORY (5) ---- Advanced Weight Redist. System Particle Charger Peak State ------------ > --- POWER ------------ Improved Ion Engine Light Deuterium Engine > --- PROPULSION ------- Gravmag System Gravmag System Gravmag System Gravmag System > --- UTILITY ---------- Structural Scanner Particle Charger > --- WEAPON ----------- Heavy Particle Gun Shock Bomb Launcher > --- INVENTORY -------- Advanced Weight Redist. System Particle Charger Particle Charger Grenade Launcher [Rating: 33] Favorites ----------- Power Ion Engine Engine Ion Engine Propulsion Gravmag System Leg Aluminum Leg Hover Unit Gravmag System Flight Unit Flight Unit Utility Particle Charger Device Particle Charger Protection Medium Reactive Plating Weapon Light Assault Rifle Energy Gun EM Pulse Gun Ballistic Gun Light Assault Rifle Launcher Grenade Launcher Build | -11 -10 -9 -8 -8 ------- Run | Yrd Mat Mat Mat Gar Slots Evolved 4 | . . 2 2 . Power 1 | . . . 1 . Propulsion 3 | . . 2 1 . Utility . | . . . . . Weapon . | . . . . . Parts Attached 35 | . 7 6 15 7 Power 4 | . 1 1 2 . Engine 4 | . 1 1 2 . Core . | . . . . . Reactor . | . . . . . Propulsion 12 | . 3 3 4 2 Treads . | . . . . . Leg 5 | . 3 . . 2 Wheel . | . . . . . Hover 4 | . . . 4 . Flight 3 | . . 3 . . Utility 9 | . . . 5 4 Device 4 | . . . 2 2 Storage . | . . . . . Processor . | . . . . . Hackware . | . . . . . Protection 5 | . . . 3 2 Artifact . | . . . . . Weapon 10 | . 3 2 4 1 Energy Gun 3 | . 1 . 2 . Energy Cannon . | . . . . . Ballistic Gun 5 | . 2 2 . 1 Ballistic Cannon . | . . . . . Launcher 2 | . . . 2 . Special Weapon . | . . . . . Impact Weapon . | . . . . . Slashing Weapon . | . . . . . Piercing Weapon . | . . . . . Special Melee Weapon . | . . . . . Unidentified Prototypes 2 | . . 1 1 . Parts Lost 16 | . 1 . 11 4 Power 2 | . . . 2 . Propulsion 5 | . . . 4 1 Utility 4 | . . . 2 2 Weapon 5 | . 1 . 3 1 Highest Loss Streak 10 | . 1 . 10 4 To Critical Strikes . | . . . . . Average Backups 3 | 2 2 3 3 2 Power . | . . 1 . . Propulsion . | 1 1 1 . . Utility 1 | . . . 2 2 Weapon . | . 1 1 1 . Tool/Special . | . . . . . Unused Backups 3 | . 1 . 1 1 Power . | . . . . . Propulsion 1 | . 1 . . . Utility 2 | . . . 1 1 Weapon . | . . . . . Tool/Special . | . . . . . Average Slot Usage (%) 61 | . 61 66 72 28 Engine 10 | . 12 11 12 . Leg 13 | . 24 15 . 8 Hover 9 | . . . 28 . Flight 2 | . . 17 1 . Device 4 | . . . 8 12 Protection 2 | . . . 6 1 Energy Gun 8 | . 10 . 11 . Ballistic Gun 8 | . 13 22 1 . Launcher 1 | . . . 1 6 Peak Build Rating 33 | . 5 10 33 13 Average Rating 12 | . 4 7 25 7 On Entrance 3 | . . 5 10 4 Naked Turns 45 | . 41 . . 4 Heaviest Build 36 | . 8 9 36 9 Greatest Support 36 | 3 20 20 36 15 Greatest Overweight (x) 2 | . . . 2 . Average Overweight (x) . | . . . . . Largest Inventory Capacity 5 | 5 5 5 5 5 Average Capacity 5 | 5 5 5 5 5 Most Carried 5 | 5 5 5 5 5 Average Carried 3 | 3 2 3 4 2 Final Capacity 5 | 5 5 5 5 5 Final Carried 5 | 5 5 2 5 2 Class Distribution -------------------- 91% | Mutant 8% | Scavenger-Mutant Dominant Class ---------------- Mutant | -10/Materials Scavenger-Mutant | -9/Materials Mutant | -8/Materials Mutant | -8/Garrison Resources | -11 -10 -9 -8 -8 ----------- Run | Yrd Mat Mat Mat Gar Matter Collected 577 | 200 107 52 196 22 Remotely . | . . . . . Salvage Created 789 | . 350 52 338 49 Parts 45 | . 16 5 22 2 Haulers Intercepted . | . . . . . Recyclers Shooed 1 | . . . 1 . Parts Field Recycled . | . . . . . Retrieved Matter . | . . . . . Parts Self-Destructed . | . . . . . Prevented . | . . . . . Kills | -11 -10 -9 -8 -8 ------- Run | Yrd Mat Mat Mat Gar Combat Hostiles Destroyed 19 | . 9 1 7 2 Guns 13 | . 4 1 7 1 AOE 6 | . 5 . . 1 Classes Destroyed 5 | . 3 1 1 . Recycler 2 | . 1 . 1 . Swarmer 6 | . 3 . 3 . Grunt 7 | . 6 . . 1 Sentry 5 | . . 1 3 1 Hunter 1 | . . . 1 . Best Kill Streak 3 | . 3 1 3 1 Combat Bots Only 3 | . 3 1 3 1 Max Kills in Single Turn 2 | . 2 1 1 1 Gunslinging . | . . . . . Exploded 2 | . 2 . . 1 Melee . | . . . . . Uniques/NPCs Destroyed . | . . . . . Combat | -11 -10 -9 -8 -8 -------- Run | Yrd Mat Mat Mat Gar Hostile Shots Fired 190 | . 46 2 81 61 Missed 59 | . 16 1 24 18 Hits 131 | . 30 1 57 43 Projectile 131 | . 30 1 57 43 Critical Strikes 2 | . . . 2 . Damage Taken 2178 | . 357 15 1070 736 Core 674 | . 119 . 247 308 Absorbed by Shields . | . . . . . Ignored by Resistances 71 | . . . 71 . Core Remaining (%) 84 | 100 52 100 . . Volleys Fired 80 | . 31 9 32 8 Largest 2 | . 2 2 2 1 Hottest 105 | . 60 43 105 30 Shots Fired 128 | . 57 18 45 8 Gun 116 | . 57 18 38 3 Cannon . | . . . . . Launcher 12 | . . . 7 5 Special . | . . . . . Kinetic 53 | . 32 18 . 3 Thermal 29 | . . . 29 . Explosive 7 | . . . 2 5 Electromagnetic 39 | . 25 . 14 . Robot Hit Streak 9 | . 5 5 9 4 Robot Miss Streak 3 | . 3 3 3 1 Penetration Max 1 | . . . . 1 Secondary Targets . | . . . . . Shots Hit Robots 73 | . 35 5 28 5 Core Hits 38 | . 16 2 12 8 Critical Kills . | . . . . . Critical Parts Destroyed . | . . . . . Critical Strikes 1 | . . . 1 . Burn 1 | . . . 1 . Melee Attacks . | . . . . . Impact . | . . . . . Slashing . | . . . . . Piercing . | . . . . . Sneak Attacks . | . . . . . Combat Hostiles . | . . . . . Follow-up Attacks . | . . . . . Damage Inflicted 1583 | . 651 58 658 216 Guns 1037 | . 421 58 491 67 Cannons . | . . . . . Explosions 520 | . 214 . 157 149 Melee . | . . . . . Ramming 26 | . 16 . 10 . Kinetic 272 | . 147 58 . 67 Thermal 615 | . 214 . 401 . Explosive 149 | . . . . 149 Electromagnetic 521 | . 274 . 247 . Impact . | . . . . . Slashing . | . . . . . Piercing . | . . . . . Highest Corruption . | . . . . . Average Corruption . | . . . . . Corruption Purged . | . . . . . Corruption Blocked . | . . . . . Overload Shots . | . . . . . Overflow Damage 78 | . . . 78 . Projectiles . | . . . . . Explosions 78 | . . . 78 . Melee . | . . . . . Knockbacks . | . . . . . Impact . | . . . . . Kinetic . | . . . . . Secondary . | . . . . . Self-Inflicted Damage 302 | . 8 . 239 55 Shots 5 | . . . 3 2 Rammed 2 | . 1 . 1 . Targets Rammed 2 | . 1 . 1 . Kicked . | . . . . . Crushed . | . . . . . Highest Temperature 345 | . 84 5 345 5 Average Temperature 101 | . 37 2 130 3 Received Heat Transfer 579 | . 192 . 180 207 Effects 6 | . . . 6 . Shutdowns 1 | . . . 1 . Energy Bleed 2 | . . . 2 . Short Circuit 2 | . . . 2 . Damage (minor) 1 | . . . 1 . Siege Activations . | . . . . . Martial Activations . | . . . . . Shielding Activations . | . . . . . Robots Disrupted . | . . . . . Combat Hostiles . | . . . . . Robots Corrupted . | . . . . . Combat Hostiles . | . . . . . Parts Fried . | . . . . . Impact Corruptions . | . . . . . Robots Melted . | . . . . . Combat Hostiles . | . . . . . Parts Melted . | . . . . . Heat Transferred 1014 | . 200 . 814 . Parts Sabotaged . | . . . . . Parts Stolen . | . . . . . Parts Stripped . | . . . . . Power Chain Reactions 4 | . 3 . 1 . Alert | -11 -10 -9 -8 -8 ------- Run | Yrd Mat Mat Mat Gar Maximum Alert Level 1 | . . . 1 . Low Security (%) 93 | 100 100 100 80 100 Level 1 6 | . . . 19 . Level 2 . | . . . . . Level 3 . | . . . . . Level 4 . | . . . . . Level 5 . | . . . . . High Security . | . . . . . Max Security . | . . . . . Peak Influence 247 | . 101 66 247 146 Initial 92 | . . 26 23 92 Average 71 | . 43 21 111 108 Influence Increases 860 | . 256 90 420 94 Destroy 0b10 Robot/C 380 | . 180 20 140 40 Destroy 0b10 Robot/NC 10 | . 5 . 5 . Destroy Leader 100 | . 40 10 50 . Successful Hack 20 | . . . 4 16 Disable Machine 30 | . . . 30 . Destroy Structure 80 | . 16 . 41 23 Partial Spotted 60 | . . 30 30 . Lose Combat Pursuer 180 | . 15 30 120 15 Influence Decreases 714 | . 193 97 333 91 Entered New Map 121 | . . 37 33 51 Time Decay 433 | . 183 60 190 . Lost Part 160 | . 10 . 110 40 Squads Dispatched 3 | . 1 . 2 . Investigation . | . . . . . Extermination . | . . . . . Reinforcement 3 | . 1 . 2 . Assault . | . . . . . Garrison . | . . . . . Intercept . | . . . . . Searches Triggered . | . . . . . Construction Impeded . | . . . . . Haulers Reinforced . | . . . . . Active Scanning Responses . | . . . . . Cargo Convoy Interrupts . | . . . . . Stealth | -11 -10 -9 -8 -8 --------- Run | Yrd Mat Mat Mat Gar Distress Signals 1 | . 1 . . . Communications Jammed . | . . . . . Distress Signals . | . . . . . Times Spotted 44 | . 16 4 18 6 Peak Tracking Total 7 | . 6 3 7 6 Tactical Retreats 6 | . 1 1 3 1 Traps | -11 -10 -9 -8 -8 ------- Run | Yrd Mat Mat Mat Gar Traps Triggered 1 | . . . . 1 Indirectly . | . . . . . Trap Hack Attempts . | . . . . . Triggered . | . . . . . Disarmed . | . . . . . Reprogrammed . | . . . . . Reused . | . . . . . Traps Extracted . | . . . . . Installed . | . . . . . Triggered . | . . . . . Machines | -11 -10 -9 -8 -8 ---------- Run | Yrd Mat Mat Mat Gar Machines Disabled 2 | . . . 2 . Max in Single Turn 2 | . . . 2 . Machines Repaired . | . . . . . Machines Dismantled . | . . . . . Machines Sabotaged . | . . . . . Overloaded Fab Kills . | . . . . . Hacking | -11 -10 -9 -8 -8 --------- Run | Yrd Mat Mat Mat Gar Machines Accessed 2 | . . . 1 1 Terminals 1 | . . . . 1 Fabricators . | . . . . . Repair Stations . | . . . . . Recycling Units . | . . . . . Scanalyzers . | . . . . . Garrison Access 1 | . . . 1 . Total Hacks 3 | . . . 2 1 Successful 2 | . . . 1 1 Failed 1 | . . . 1 . Catastrophic . | . . . . . Database Lockouts . | . . . . . Manual . | . . . . . Terminals 1 | . . . . 1 Fabricators . | . . . . . Repair Stations . | . . . . . Recycling Units . | . . . . . Scanalyzers . | . . . . . Garrison Access 2 | . . . 2 . Terminal Hacks 1 | . . . . 1 Security Stations 1 | . . . . 1 Fabricator Hacks . | . . . . . Repair Station Hacks . | . . . . . Recycling Unit Hacks . | . . . . . Scanalyzer . | . . . . . Garrison Access Hacks 1 | . . . 1 . Unlock Access 1 | . . . 1 . Unauthorized Hacks . | . . . . . Terminals . | . . . . . Fabricators . | . . . . . Repair Stations . | . . . . . Recycling Units . | . . . . . Scanalyzers . | . . . . . Garrison Access . | . . . . . Data Cores Recovered . | . . . . . Used . | . . . . . Hacking Detections 1 | . . . 1 . Full Trace Events . | . . . . . Feedback Events . | . . . . . Feedback Blocked . | . . . . . Robot Schematics Acquired . | . . . . . Robots Built . | . . . . . Authchips . | . . . . . Time . | . . . . . Total Robot Build Rating . | . . . . . Part Schematics Acquired . | . . . . . Parts Built . | . . . . . Authchips . | . . . . . Time . | . . . . . Total Part Build Rating . | . . . . . Parts Repaired . | . . . . . Time . | . . . . . Parts Recycled . | . . . . . Recycled Matter . | . . . . . Retrieved Matter . | . . . . . Retrieved Components . | . . . . . Parts Scanalyzed . | . . . . . Part Schematics Acquired . | . . . . . Parts Damaged . | . . . . . Bothacking | -11 -10 -9 -8 -8 ------------ Run | Yrd Mat Mat Mat Gar Used RIF Installer . | . . . . . Robots Hacked . | . . . . . Non-combat . | . . . . . Combat . | . . . . . Robot Hacks Applied . | . . . . . Relay Couplers Released . | . . . . . Fabnet Peak Effective % . | . . . . . Robots Rewired . | . . . . . Allies Hacked . | . . . . . Hacks Repelled . | . . . . . Allies | -11 -10 -9 -8 -8 -------- Run | Yrd Mat Mat Mat Gar Total Allies . | . . . . . Largest Group . | . . . . . Highest-Rated Group . | . . . . . Highest-Rated Ally . | . . . . . Total Orders . | . . . . . Ally Attacks . | . . . . . Total Damage . | . . . . . Kills . | . . . . . Allies Corrupted . | . . . . . Allies Melted . | . . . . . Intel | -11 -10 -9 -8 -8 ------- Run | Yrd Mat Mat Mat Gar Active Infowar (turns) 190 | . . . 190 . Structural 190 | . . . 190 . Robot Analysis Total . | . . . . . Derelict Logs Recovered . | . . . . . Drone Launches . | . . . . . Drone Recoveries . | . . . . . Exploration | -11 -10 -9 -8 -8 ------------- Run | Yrd Mat Mat Mat Gar Turns Passed 1130 | 25 463 122 382 138 Spaces Moved 982 | 39 300 154 410 79 Core 148 | 39 89 . 19 1 Treads . | . . . . . Legs 316 | . 211 27 . 78 Wheels . | . . . . . Hover 381 | . . . 381 . Flight 137 | . . 127 10 . Fastest Speed 44 | 50 50 44 44 50 Average Speed 73 | 50 99 57 55 119 Slowest Speed 150 | 50 120 120 150 120 Overloaded Moves . | . . . . . Propulsion Burnouts . | . . . . . Robots Hopped 2 | . . 2 . . Potential Cave-ins . | . . . . . Cave-ins Triggered . | . . . . . Exploration Rate (%) 27 | 4 48 20 48 16 Regions Visited 4 Branch Regions . Pre-discovered Areas . | . . . . . Known Exits Taken 1 | . . . 1 . Unknown Exits Taken 3 | 1 1 1 . . Scrap Searched . | . . . . . Spaces Dug . | . . . . . Terrain Destroyed 110 | . 15 . 61 34 Melee . | . . . . . Projectile 2 | . . . 2 . AOE 108 | . 15 . 59 34 Terrain Rammed . | . . . . . Walls Destroyed . | . . . . . Machines Disabled . | . . . . . Actions | -11 -10 -9 -8 -8 --------- Run | Yrd Mat Mat Mat Gar Total 1272 | 43 416 171 525 117 Wait 113 | . 65 . 31 17 Move 975 | 38 299 149 410 79 Hop 2 | . . 2 . . Pick Up 36 | 5 8 1 18 4 Fast Attach 6 | . 1 1 4 . Attach 33 | . 6 5 14 8 Detach 4 | . 1 1 1 1 Swap 1 | . 1 . . . Drop 20 | . 3 3 14 . Fire 80 | . 31 9 32 8 Melee . | . . . . . Ram 2 | . 1 . 1 . Kick . | . . . . . Crush . | . . . . . Escape Stasis . | . . . . . Rewire . | . . . . . Trap . | . . . . . Miscellaneous . | . . . . . Route ------- -11/Scrapyard -10/Materials -9/Materials -8/Materials -8/Garrison History --------- Turn | Location | Event 2 | -11/Scrapyard | Met Revision 17 5 | -11/Scrapyard | Discovered new exit (range 14) 26 | -11/Scrapyard | Entered Materials 311 | -10/Materials | Build established: Mutant 334 | -10/Materials | Discovered new exit (range 12) 489 | -10/Materials | Entered another Materials area 489 | -9/Materials | Evolved 2 slots: Propulsion x2 609 | -9/Materials | Discovered new exit (range 4) 611 | -9/Materials | Entered another Materials area 611 | -8/Materials | Evolved 2 slots: Power x1, Propulsion x1 993 | -8/Materials | Identified exit to Garrison 993 | -8/Materials | Entered Garrison 1019 | -8/Garrison | Lost 10 parts (2p4n2u2w) 1075 | -8/Garrison | Learned Materials security intel 1088 | -8/Garrison | Core integrity fell below 50% 1114 | -8/Garrison | Core integrity fell below 20% 1131 | -8/Garrison | Destroyed by G-50 Soldier with Heavy Laser Last Messages --------------- Particle Charger destroyed. The unstable cave ceiling collapses. G-47 Trooper destroyed. Acquired 22 matter. Grenade Launcher destroyed. H-55 Commando springs to life. Acquired Carbon-fiber Leg. Penetrated by Slug. Slug penetrates Machine. Machine disabled. Imp. Aluminum Leg destroyed. Acquired Imp. Light Armor Plating. Penetrated by Slug. H-55 Commando destroyed. Acquired Gauss Rifle. Penetrated by Slug. Slug penetrates H-55 Commando. Slug penetrates Y-45 Defender. Y-45 Defender destroyed. [Achievement: Achiever] Map ----- +----------------------------------------------------+ | ???????????????????# #?????????# #??????????????? | | ???????????????????# #?????????# #??????????????? | | ???????????????????# #?????????# #??????????????? | | ???????????????????# #?????????# #??????????????? | | ????????????????#### ########### #??????????????? | | ????????????????# #??????????????? | | ????????????????# #??????????????? | | ????????????????# ###T###### ### ##?????????????? | | ????????????????# #?###?# # ## "#?????????????? | | ????????????????# #?????# # ## T#?????????????? | | ????????????????# #?????# ## #""#?????????????? | | ????????????????# #?##### ####?????????????? | | ????????????????# # #???????????????? | | ????????????????# ######## #???????????????? | | ??????????????### #?????# #????????????????? | | ??????????????# #?????# ###??????????????? | | ??????????????# #??###### [ #??????????????? | | ??????????????# #??#""""" #??????????????? | | ??????????????######??# "" " #??????????????? | | ??????????????????????# "#### #??????????????? | | ??????????????????????# =g g#??????????????? | | ??????????????????????#"""m g #??????????????? | | ??????????????????????#" """#??????????????? | | ??????????????????????#"" "#??????????????? | | ??????????????????????#" = ""#??????????????? | | ??????????????????????#"%@ h ""#??????????????? | | ??????????????????????#""= ! "#??????????????? | | ??????????????????????#" !! """#??????????????? | | ??????????????????????#""""""""####??????????????? | | ??????????????????????##########?????????????????? | | ?????????????????????????????????????????????????? | | ?????????????????????????????????????????????????? | | ?????????????????????????????????????????????????? | | ?????????????????????????????????????????????????? | | ?????????????????????????????????????????????????? | | ?????????????????????????????????????????????????? | | ?????????????????????????????????????????????????? | | ?????????????????????????????????????????????????? | | ?????????????????????????????????????????????????? | | ?????????????????????????????????????????????????? | | | | | | | | | | | | | | | | | | | | | +----------------------------------------------------+ Best States ------------- Heat Dissipation 31 Energy Generation 21 Energy Capacity 305 Matter Stores 300 Matter Capacity 300 Sight Range 16 Terrain Scan Density 10 Armor Coverage 300 Resistance: KI 30 Core Shielding 20 Evasion (%) 61 Particle Charging 15 Item Schematics ----------------- None Robot Schematics ------------------ None Fabricated ------------ Nothing Repaired ---------- Nothing Alien Tech Used ----------------- None Achievements -------------- Achiever Challenges ------------ None Game ------ Seed FactoryInsulationArchive Manual? 0 Play Time 00:25:29 Cumulative 26.0 hours Start 2025.09.18 @ 10:04:33 End 2025.09.18 @ 10:28:26 Sessions 1 Manual Loads 0 Difficulty Rogue Special Mode None Game No. 32 Rogue 5 Adventurer 0 Explorer 27 Win Type - Total 0 Types 0/0/0/0/0/0/0/0/0/0 Lore% 17 Gallery% 31 Achievement% 25 Wizard Run 0 Options --------- Layout 2 ASCII 0 Keyboard 0 Movement Mouse Keybinds 0 Fullscreen 2 Font 16/SmallcapsGlow Map View 50x44 Zoom Use 0% Tactical HUD 0 Map Filters NONE Filters NONE Steam X RUN: 06b8696c-566a-4baa-9a28-d035f69e81f8